Cogmind - Beta 9.3 @@@ ROGUE MODE // 2019.12.18 @ 03:02:18 // Winter2019/RPGLIKE Player: thingamajigger Result: Destroyed by G-34 Mercenary with Small Laser Performance ------------- Evolutions (1) 500 Regions Visited (2) 400 Robots Destroyed (15) 75 Value Destroyed (420) 420 Prototype IDs (0) 0 Alien Tech Used (0) 0 Bonus (0) 0 TOTAL SCORE: 1395 Bonus ------- None Cogmind --------- Core Integrity 0/650 Matter 300/300 Energy 160/160 System Corruption 0% Temperature Cool (14) Movement Rolling (90) Location -9/Materials Parts ------- > --- POWER (1) -------- Light Nuclear Core > --- PROPULSION (2) --- Wheel Compact Wheel > --- UTILITY (1) ------ Signal Interpreter > --- WEAPON (2) ------- Beam Cannon Beam Cannon > --- INVENTORY (2) ---- Core Shielding Small Laser Peak State ------------ > --- POWER ------------ Light Nuclear Core > --- PROPULSION ------- Wheel Compact Wheel > --- UTILITY ---------- Signal Interpreter > --- WEAPON ----------- EM Pulse Gun Medium Laser > --- INVENTORY -------- Protomatter Ion Engine [Rating: 8] Favorites ----------- Power Light Nuclear Core Engine Ion Engine Power Core Light Nuclear Core Propulsion Compact Wheel Treads Light Treads Wheel Compact Wheel Utility Signal Interpreter Processor Signal Interpreter Weapon Beam Cannon Energy Gun EM Pulse Gun Energy Cannon Beam Cannon Ballistic Gun Light Assault Rifle Build | -11 -10 -9 ------- Run | Scr Mat Mat Slots Evolved 2 | 2 . . Power . | . . . Propulsion 1 | 1 . . Utility . | . . . Weapon 1 | 1 . . Parts Attached 14 | 10 4 . Power 2 | 1 1 . Engine 1 | 1 . . Core 1 | . 1 . Reactor . | . . . Propulsion 6 | 6 . . Treads 2 | 2 . . Leg . | . . . Wheel 4 | 4 . . Hover . | . . . Flight . | . . . Utility 1 | . 1 . Device . | . . . Storage . | . . . Processor 1 | . 1 . Hackware . | . . . Protection . | . . . Artifact . | . . . Weapon 5 | 3 2 . Energy Gun 2 | 2 . . Energy Cannon 2 | . 2 . Ballistic Gun 1 | 1 . . Ballistic Cannon . | . . . Launcher . | . . . Special Weapon . | . . . Impact Weapon . | . . . Slashing Weapon . | . . . Piercing Weapon . | . . . Special Melee Weapon . | . . . Unidentified Prototypes . | . . . Parts Lost . | . . . Power . | . . . Propulsion . | . . . Utility . | . . . Weapon . | . . . Highest Loss Streak . | . . . Average Slot Usage (%) 98 | . 97 100 Engine 5 | . 6 . Core 10 | . 9 16 Wheel 33 | . 33 33 Processor 14 | . 14 16 Energy Gun 16 | . 19 . Energy Cannon 16 | . 13 33 Naked Turns . | . . . Heaviest Build 11 | 9 11 11 Greatest Support 40 | 40 26 26 Greatest Overweight (x) 2 | 2 . . Average Overweight (x) . | . . . Largest Inventory Capacity 2 | 2 2 2 Average Capacity 1 | 1 2 2 Most Carried 2 | 2 2 2 Average Carried 1 | . 1 2 Final Capacity 2 | 2 2 2 Final Carried 2 | . 2 2 Class Distribution -------------------- 100% | Mutant Dominant Class ---------------- Mutant | -10/Materials Mutant | -9/Materials Resources | -11 -10 -9 ----------- Run | Scr Mat Mat Matter Collected 340 | 197 143 . Remotely . | . . . Salvage Created 771 | . 706 65 Parts 33 | . 30 3 Haulers Intercepted 2 | . 2 . Recyclers Shooed . | . . . Parts Field Recycled . | . . . Retrieved Matter . | . . . Parts Self-Destructed . | . . . Prevented . | . . . Kills | -11 -10 -9 ------- Run | Scr Mat Mat Combat Hostiles Destroyed 10 | . 9 1 Guns 8 | . 8 . Cannons 2 | . 1 1 Classes Destroyed 4 | . 4 . Builder 1 | . 1 . Hauler 2 | . 2 . Watcher 2 | . 2 . Grunt 10 | . 9 1 Best Kill Streak 8 | . 8 1 Combat Bots Only 8 | . 8 1 Max Kills in Single Turn 1 | . 1 1 Gunslinging . | . . . Exploded . | . . . Melee . | . . . Uniques/NPCs Destroyed . | . . . Combat | -11 -10 -9 -------- Run | Scr Mat Mat Damage Taken 808 | . 627 181 Core 654 | . 510 144 Absorbed by Shields . | . . . Redirected to Core 506 | . 387 119 Core Remaining (%) 57 | 100 15 . Volleys Fired 54 | 6 42 6 Largest 2 | 1 2 2 Hottest 120 | 40 120 120 Shots Fired 101 | 6 83 12 Gun 71 | 6 65 . Cannon 30 | . 18 12 Launcher . | . . . Special . | . . . Kinetic . | . . . Thermal 62 | . 50 12 Explosive . | . . . Electromagnetic 39 | 6 33 . Robot Hit Streak 24 | 4 24 7 Robot Miss Streak 2 | 1 1 2 Penetration Max . | . . . Secondary Targets 3 | . 3 . Max Gunslinging Chain 1 | . 1 . Shots Hit Robots 86 | 5 72 9 Core Hits 28 | 1 24 3 Critical Hits . | . . . Critical Kills . | . . . Critical Parts Destroyed . | . . . Melee Attacks . | . . . Impact . | . . . Slashing . | . . . Piercing . | . . . Sneak Attacks . | . . . Combat Hostiles . | . . . Follow-up Attacks . | . . . Damage Inflicted 1175 | 67 985 123 Guns 824 | 67 757 . Cannons 351 | . 228 123 Explosions . | . . . Melee . | . . . Ramming . | . . . Kinetic . | . . . Thermal 663 | . 540 123 Explosive . | . . . Electromagnetic 512 | 67 445 . Impact . | . . . Slashing . | . . . Piercing . | . . . Highest Corruption . | . . . Average Corruption . | . . . Corruption Purged . | . . . Overload Shots . | . . . Overflow Damage . | . . . Projectiles . | . . . Explosions . | . . . Melee . | . . . Knockbacks . | . . . Impact . | . . . Kinetic . | . . . Secondary . | . . . Self-Inflicted Damage . | . . . Shots . | . . . Rammed . | . . . Targets Rammed . | . . . Kicked . | . . . Crushed . | . . . Highest Temperature 68 | . 25 68 Average Temperature 11 | . 4 32 Received Heat Transfer 429 | . 351 78 Siege Activations . | . . . Robots Corrupted . | . . . Combat Hostiles . | . . . Parts Fried 1 | . 1 . Impact Corruptions . | . . . Robots Melted . | . . . Combat Hostiles . | . . . Parts Melted 3 | . 3 . Heat Transferred 1665 | . 1406 259 Parts Sabotaged . | . . . Parts Stolen . | . . . Parts Stripped . | . . . Power Chain Reactions . | . . . Missiles Intercepted . | . . . Alert | -11 -10 -9 ------- Run | Scr Mat Mat Peak Influence 283 | . 283 57 Average Influence 116 | . 153 46 Maximum Alert Level 1 | . 1 . Low Security (%) 64 | 100 50 100 Level 1 35 | . 49 . Level 2 . | . . . Level 3 . | . . . Level 4 . | . . . Level 5 . | . . . High Security . | . . . Max Security . | . . . Squads Dispatched 2 | . 2 . Investigation . | . . . Extermination . | . . . Reinforcement 2 | . 2 . Assault . | . . . Garrison . | . . . Intercept . | . . . Construction Impeded . | . . . Haulers Reinforced . | . . . Stealth | -11 -10 -9 --------- Run | Scr Mat Mat Distress Signals . | . . . Communications Jammed . | . . . Distress Signals . | . . . Times Spotted 24 | . 18 6 Peak Tracking Total 8 | . 8 5 Tactical Retreats 3 | . 3 . Traps | -11 -10 -9 ------- Run | Scr Mat Mat Traps Triggered . | . . . Indirectly . | . . . Trap Hack Attempts . | . . . Triggered . | . . . Disarmed . | . . . Reprogrammed . | . . . Reused . | . . . Traps Extracted . | . . . Installed . | . . . Triggered . | . . . Machines | -11 -10 -9 ---------- Run | Scr Mat Mat Machines Disabled . | . . . Max in Single Turn . | . . . Machines Sabotaged . | . . . Garrisons Compromised . | . . . Overloaded Fab Kills . | . . . Fab Network Shutdowns . | . . . Hacking | -11 -10 -9 --------- Run | Scr Mat Mat Machines Accessed 3 | . 3 . Terminals 2 | . 2 . Fabricators . | . . . Repair Stations . | . . . Recycling Units 1 | . 1 . Scanalyzers . | . . . Garrison Access . | . . . Total Hacks 8 | . 8 . Successful 7 | . 7 . Failed 1 | . 1 . Catastrophic . | . . . Database Lockouts . | . . . Manual 5 | . 5 . Terminals 6 | . 6 . Fabricators . | . . . Repair Stations . | . . . Recycling Units 2 | . 2 . Scanalyzers . | . . . Garrison Access . | . . . Terminal Hacks 3 | . 3 . Branch Access Points 1 | . 1 . Terminal Index 1 | . 1 . Investigation Status 1 | . 1 . Fabricator Hacks . | . . . Repair Station Hacks . | . . . Recycling Unit Hacks 2 | . 2 . Report Inventory 1 | . 1 . Retrieve Components 1 | . 1 . Scanalyzer . | . . . Garrison Access Hacks . | . . . Unauthorized Hacks 5 | . 5 . Terminals 2 | . 2 . Botnet 2 | . 2 . Fabricators . | . . . Repair Stations . | . . . Recycling Units . | . . . Scanalyzers . | . . . Garrison Access . | . . . Data Cores Recovered . | . . . Used . | . . . Hacking Detections 1 | . 1 . Full Trace Events . | . . . Feedback Events . | . . . Feedback Blocked . | . . . Robot Schematics Acquired . | . . . Robots Built . | . . . Matter . | . . . Time . | . . . Total Robot Build Rating . | . . . Part Schematics Acquired . | . . . Parts Built . | . . . Matter . | . . . Time . | . . . Total Part Build Rating . | . . . Parts Repaired . | . . . Time . | . . . Parts Recycled . | . . . Recycled Matter . | . . . Retrieved Matter . | . . . Retrieved Components 9 | . 9 . Parts Scanalyzed . | . . . Part Schematics Acquired . | . . . Parts Damaged . | . . . Bothacking | -11 -10 -9 ------------ Run | Scr Mat Mat Used RIF Installer . | . . . Robots Hacked . | . . . Non-combat . | . . . Combat . | . . . Robot Hacks Applied . | . . . Relay Couplers Released . | . . . Robots Rewired . | . . . Allies Hacked . | . . . Hacks Repelled . | . . . Allies | -11 -10 -9 -------- Run | Scr Mat Mat Total Allies . | . . . Largest Group . | . . . Highest-Rated Group . | . . . Highest-Rated Ally . | . . . Total Orders . | . . . Ally Attacks . | . . . Total Damage . | . . . Kills . | . . . Allies Corrupted . | . . . Allies Melted . | . . . Intel | -11 -10 -9 ------- Run | Scr Mat Mat Robot Analysis Total . | . . . Derelict Logs Recovered . | . . . Drone Launches . | . . . Drone Recoveries . | . . . Exploration | -11 -10 -9 ------------- Run | Scr Mat Mat Turns Passed 689 | 107 492 90 Spaces Moved 494 | 79 360 55 Core 18 | 18 . . Treads 15 | 15 . . Legs . | . . . Wheels 461 | 46 360 55 Hover . | . . . Flight . | . . . Fastest Speed 50 | 50 90 90 Average Speed 91 | 98 90 90 Slowest Speed 160 | 160 90 90 Overloaded Moves . | . . . Propulsion Burnouts . | . . . Robots Hopped . | . . . Cave-ins Triggered . | . . . Exploration Rate (%) 23 | 5 61 5 Regions Visited 2 Branch Regions . Pre-discovered Areas . | . . . Known Exits Taken 1 | . 1 . Unknown Exits Taken 1 | 1 . . Scrap Searched . | . . . Spaces Dug . | . . . Terrain Destroyed . | . . . Melee . | . . . Projectile . | . . . AOE . | . . . Actions | -11 -10 -9 --------- Run | Scr Mat Mat Total 631 | 100 447 84 Wait 53 | . 30 23 Move 492 | 78 359 55 Hop . | . . . Pick Up 5 | . 5 . Fast Attach 13 | 9 4 . Attach 1 | 1 . . Detach 3 | 2 1 . Swap . | . . . Drop 10 | 4 6 . Fire 54 | 6 42 6 Melee . | . . . Ram . | . . . Kick . | . . . Crush . | . . . Escape Stasis . | . . . Rewire . | . . . Trap . | . . . Miscellaneous . | . . . Route ------- -11/Scrapyard -10/Materials (discovered 3 exits: *Mat / *Min x2) -9/Materials History --------- Turn | Location | Event 5 | -11/Scrapyard | Discovered new exit (range 16) 47 | -11/Scrapyard | Upgraded with Propulsion slot (x1) 47 | -11/Scrapyard | Upgraded with Weapon slot (x1) 108 | -11/Scrapyard | Entered Materials 176 | -10/Materials | Identified exit to Mines 237 | -10/Materials | Core integrity fell below 50% 301 | -10/Materials | Build established: Mutant 307 | -10/Materials | Destroyed 8 combat bots 472 | -10/Materials | Discovered new exit (range 16) 478 | -10/Materials | Core integrity fell below 20% 582 | -10/Materials | Identified exit to Materials 600 | -10/Materials | Entered another Materials area 601 | -9/Materials | Core integrity fell below 50% 601 | -9/Materials | Core integrity fell below 20% 602 | -9/Materials | Reached level 2 690 | -9/Materials | Destroyed by G-34 Mercenary with Small Laser Last Messages --------------- Targeting Computer Targeting Computer Aluminum Leg Ion Engine 00513_ R-06 Scavenger collects Sml. Laser. 00582_ EXIT=IDENTIFIED: MATERIALS 00588_ A-02 Transporter destroyed. 00592_ Extracted 2 energy. 00594_ Dropped Sml. Laser. 00595_ Acquired Core Shielding. 00597_ Extracted 4 energy. LOCATION=MATERIALS GOAL=ESCAPE 00602_ Reached level 2. 00605_ Upgraded: Core Integrity (+50) 00647_ G-34 Mercenary destroyed. 00665_ U-05 Engineer builds a Door. 00672_ C-30 ARC bursts open, deploying its payload. 00672_ B-36 Bruiser unfolds itself. 00672_ G-34 Mercenary unfolds itself. Map ----- +----------------------------------------------------+ | ????????????????????????????????????? | | ????????????????????????????????????? | | ????????????????????????????????????? | | ????????????????????????????????????? | | ????????????????????????????????????? | | ????????????????????????????????????? | | ????????????????????????????????????? | | ????????????????????????????????????? | | ????????????????????????????????????? | | ?????????????????????????? ?????????? | | ????????????????????????? ?????????? | | ????????????????????####?/#?????????? | | ????????????????????# ?????????? | | ????????????????????# ??????????? | | ????????????????????+ ??????????? | | ????????????????????# "" ???????????? | | ????????????????????# "T ???????????? | | ????????????????????? ""????????????? | | ????????????????????? ????????????? | | ????????????????????##/#????????????? | | ????????????????????+ ########?????? | | ????????????????????# # #?????? | | ?????????# ######+### # #?????? | | ?????????# u # #?????? | | ??????? + % =#g #?????? | | ?????????# !%gb@ #?????? | | ?????????########### *#g #?????? | | ???????????? # ###g####?????? | | ????????????""""" # #???????? | | ????????????""""" # #???????? | | ????????????""""" + #???????? | | ????????????""""" # ### #####???? | | ????????????""""" # #?#% %#???? | | ????????????""""" !#####?#% %#???? | | ????????????""""" #?????##%%%%##???? | | ???????????? #??????######????? | | ???????????#########????????????????? | | ????????????????????????????????????? | | ????????????????????????????????????? | | ????????????????????????????????????? | | ????????????????????????????????????? | | ????????????????????????????????????? | | ????????????????????????????????????? | | | | | | | | | | | | | | | +----------------------------------------------------+ Best States ------------- Heat Dissipation 49 Energy Generation 14 Energy Capacity 250 Matter Stores 300 Matter Capacity 300 Sight Range 16 Terrain Scan Density 10 Evasion (%) 50 Recoil Reduction 2 Item Schematics ----------------- None Robot Schematics ------------------ None Fabricated ------------ Nothing Alien Tech Used ----------------- None Achievements -------------- None Challenges ------------ None RPGLIKE | -11 -10 -9 --------- Run | Scr Mat Mat Levels Raised 1 | . . 1 XP Earned 5880 | 3000 1280 1600 XP Spent 2995 | 2970 . 25 Upgrades 11 | 10 . 1 Propulsion Slot 1 | 1 . . Weapon Slot 1 | 1 . . Core Integrity 1 | . . 1 Heat Dissipation 4 | 4 . . Inventory Capacity 2 | 2 . . Ranged Accuracy 2 | 2 . . Protomatter Created 31 | . 31 . Protomatter Decayed 31 | . 31 . Game ------ Seed RocketIntegratedSegregator Manual? 0 Play Time 00:10:27 Cumulative 21.0 hours Start 2019.12.18 @ 02:52:04 End 2019.12.18 @ 03:02:18 Sessions 1 Manual Loads 0 Difficulty Rogue Special Mode Winter2019/RPGLIKE Game No. 44 Rogue 41 Adventurer 0 Explorer 3 Win Type - Total 0 Types 0/0/0/0/0/0/0 Lore% 20 Gallery% 42 Achievement% 26 Wizard Run 0 Options --------- ASCII 0 Keyboard 1 Movement Numpad Keybinds 0 Fullscreen 1 Font 18/SmallcapsGlow Map View 76x50 Tactical HUD 1 Map Filters NONE Filters NONE Steam 1 RUN: c0fa4e77-659f-42dd-8916-24b680323e64